[Event "34th MPL National U14-ch 2022"]
[Site "Ahmedabad"]
[Date "2022.05.10"]
[Round "3.10"]
[White "Koustuv Dash"]
[Black "Aayush Bhojak"]
[Result "1-0"]
[ECO "E12"]
[WhiteElo "1910"]
[BlackElo "1494"]
[Annotator "TA"]
[PlyCount "81"]
[EventDate "2022.05.09"]
[EventType "swiss"]
[EventCountry "IND"]
[SourceTitle "playchess.com"]
[Source "ChessBase"]
[SourceQuality "1"]
[TimeControl "5400+30"]

{[%evp 10,81,34,19,78,76,87,64,109,110,110,109,109,97,106,74,78,53,65,64,62,58,58,65,59,41,88,84,110,102,135,104,108,108,118,112,108,69,70,61,107,94,122,145,209,216,216,208,240,239,320,104,621,425,1184,1168,1205,1214,1310,1310,1393,1413,1392,1387,1231,1175,2269,2171,29991,29992,29992,29993,29993,29994]} 1. d4 {[%emt 0:00:19][%cal Bd2d4,Bd4d5][%mdl 32]} Nf6 {[%emt 0:03:43]} 2. c4 {[%emt 0:00:08]} e6 {[%emt 0:00:12]} 3. Nf3 {[%emt 0:00:05]} b6 {[%emt 0:01:59]} 4. a3 {[%emt 0:00:06]} Bb7 {[%emt 0:01:54]} 5. Nc3 {[%emt 0:00:14]} d6 {[%emt 0:02:25]} 6. d5 {[%emt 0:00:44]} e5 {[%emt 0:01:57] E12: Queen's Indian: Unusual White 4th moves, 4 a3, 4 Nc3 Bb7 5 a3 and 4 Nc3 Bb7 .} (6... g6 $11) 7. e4 $16 {[%emt 0:02:43]} Nbd7 {[%emt 0:01:09] [#]} 8. Rb1 $146 {[%emt 0:01:42]} ({Predecessor:} 8. b4 Be7 9. Bd3 O-O 10. O-O Nh5 11. Bc2 g6 12. Bh6 Ng7 13. Qd2 Ba6 14. Bd3 {0-1 (32) Gallego Jimenez,V (2385)-Arribas Lopez,A (2477) Madrid 2013}) 8... c5 {[%emt 0:09:09] White is slightly better.} (8... Rc8) 9. Be2 {[%emt 0:04:19]} g6 {[%emt 0:04:48]} 10. O-O {[%emt 0:03:41]} Bg7 {[%emt 0:07:13]} 11. Ne1 {[%emt 0:06:42]} O-O {[%emt 0:03:51]} 12. Nd3 {[%emt 0:01:09]} Ne8 {[%emt 0:05:17]} 13. Be3 {[%emt 0:03:56]} f5 {[%emt 0:02:14]} 14. f3 {[%emt 0:09:28]} f4 {[%emt 0:03:57]} 15. Bf2 {[%emt 0:00:01]} Bc8 {[%emt 0:05:01]} 16. b4 {[%emt 0:02:47]} g5 {[%emt 0:05:30]} 17. a4 {[%emt 0:01:15][%cal Ba3a4,Ba4a5][%mdl 32]} h5 {[%emt 0:07:38]} (17... a5) (17... a5 $14) 18. a5 {[%emt 0:01:01]} Ndf6 {[%emt 0:06:01]} 19. Ra1 {[%emt 0:06:06] [#] Threatens to win with axb6.} (19. bxc5 bxc5 20. Qa4 h4) (19. bxc5 bxc5 20. Qa4 h4 $14) 19... Rb8 {[%emt 0:01:19]} (19... cxb4 20. Nxb4 bxa5 21. Nc6) (19... cxb4 $2 20. Nxb4 bxa5 21. Nc6 $18) 20. axb6 {[%emt 0:03:43]} (20. bxc5 $6 bxc5 21. Nb5 Ra8 $14) 20... axb6 {[%emt 0:00:10]} 21. Nb5 {[%emt 0:00:39][%cal Bc3b5,Bb5a7,Ba7c6][%mdl 32]} Bd7 {[%emt 0:03:10]} 22. Na7 {[%emt 0:06:51]} (22. bxc5 bxc5 23. Qc2 Rf7 $14) 22... Qc7 {[%emt 0:06:15]} 23. Ra2 {[%emt 0:01:27]} (23. b5) 23... g4 {[%emt 0:01:12]} 24. Qa1 {[%emt 0:01:17]} gxf3 {[%emt 0:01:38]} (24... Nh7) (24... Nh7 $14 {is more appropriate.}) 25. gxf3 {[%emt 0:00:36]} Bh3 {[%emt 0:01:22][%cal Of6e4]} 26. Nc6 {[%emt 0:00:59]} Qf7 {[%emt 0:06:14] [#]} (26... Bxf1 $16 27. Bxf1 Rb7) 27. Kh1 $1 $18 {[%emt 0:01:22] Active counter play!} Bxf1 {[%emt 0:03:58]} 28. Bxf1 {[%emt 0:00:57][%cal Be2f1,Bf1h3,Bh3e6][%mdl 32]} Rc8 {[%emt 0:01:22]} 29. Bh3 {[%emt 0:01:10][%mdl 1024] Inhibits Qd7. White has strong compensation.} Nc7 {[%emt 0:02:18]} 30. Ra7 {[%emt 0:01:11]} ({Much less strong is} 30. bxc5 bxc5 31. Bxc5 (31. Bxc8 Rxc8 32. Bxc5 dxc5 $18) 31... dxc5) (30. Bxc8 $18 {and White stays clearly on top.} Rxc8 31. Ra7) 30... Kh8 $2 {[%emt 0:00:43][%mdl 8192] Black cannot hold the game after this.} 31. Be6 {[%emt 0:01:11]} Qg6 {[%emt 0:00:38]} (31... Qe8 32. Bxc8 Qxc8) (31... Qe8 $142 32. Bxc8 Qxc8) 32. Ne7 {[%emt 0:01:04]} Qh7 {[%emt 0:00:42]} 33. Bxc8 {[%emt 0:00:41] Bf5 is the strong threat.} Nxe4 {[%emt 0:02:01]} 34. Qg1 {[%emt 0:09:02]} Ng3+ {[%emt 0:00:00]} 35. hxg3 {[%emt 0:00:51]} Qxd3 {[%emt 0:00:00]} 36. gxf4 {[%emt 0:00:56] aiming for Ng6+.} Qxf3+ {[%emt 0:00:57]} 37. Qg2 {[%emt 0:00:02]} Qd1+ {[%emt 0:00:28]} 38. Kh2 {[%emt 0:00:01]} exf4 {[%emt 0:00:32]} 39. Ng6+ {[%emt 0:01:26] White mates.} Kg8 {[%emt 0:00:04]} 40. Rxc7 {[%emt 0:00:29]} f3 {[%emt 0:00:49]} 41. Be6+ {[%emt 0:00:07] Weighted Error Value: White=0.21 (precise) /Black=0.60} 1-0

[Event "34th MPL National U14-ch 2022"]
[Site "Ahmedabad"]
[Date "2022.05.10"]
[Round "4.1"]
[White "Adireddy Arjun"]
[Black "Kadam Om Manish"]
[Result "0-1"]
[ECO "B56"]
[WhiteElo "1898"]
[BlackElo "2144"]
[Annotator "TA"]
[PlyCount "154"]
[EventDate "2022.05.09"]
[EventType "swiss"]
[EventCountry "IND"]
[SourceTitle "playchess.com"]
[Source "ChessBase"]
[SourceQuality "1"]
[TimeControl "5400+30"]

{[%evp 23,154,16,20,20,12,20,16,22,12,6,55,38,56,38,18,28,71,31,54,43,82,82,77,81,84,87,109,107,147,132,134,128,131,58,60,65,55,19,23,-12,-6,-12,0,0,0,-20,-18,-21,-16,-31,-31,-31,-6,-33,-28,-35,-28,-49,-40,-66,-66,-62,-68,-118,-95,-118,-118,-118,-52,-63,-13,-118,-73,-132,-134,-141,-99,-175,-77,-72,-75,-75,-38,-39,-36,-51,-39,-29,-33,-38,-34,-35,-20,-50,-50,-45,-14,-422,-86,-412,-397,-395,-13,-383,-371,-322,-229,-229,-229,-229,-229,-229,-229,-215,-215,-699,-699,-699,-691,-691,-691,-29972,-29974,-29974,-29976,-29976,-29976,-29988,-29989,-29989,-29990,-29990,-29991]} 1. e4 {[%emt 0:00:22]} c5 {[%emt 0:00:04]} 2. Nf3 {[%emt 0:00:08]} d6 {[%emt 0:00:03]} 3. d4 {[%emt 0:00:06]} cxd4 {[%emt 0:00:03]} 4. Nxd4 {[%emt 0:00:07]} Nf6 {[%emt 0:00:03]} 5. Nc3 {[%emt 0:00:08]} a6 {[%emt 0:00:02]} 6. Be3 {[%emt 0:00:05]} e5 {[%emt 0:00:04]} 7. Nf3 {[%emt 0:00:06]} Be7 {[%emt 0:00:02]} 8. Bc4 {[%emt 0:00:08]} O-O {[%emt 0:00:04]} 9. O-O {[%emt 0:00:06]} Be6 {[%emt 0:00:02]} 10. Bb3 {[%emt 0:00:24]} Nc6 {[%emt 0:00:13][%cal Bb8c6,Bc6a5,Ba5c4][%mdl 32]} 11. Qe2 {[%emt 0:02:05] The main line 11.Qe2 scores better than 11.Bg5.} Na5 {[%emt 0:00:22]} 12. Rfd1 {[%emt 0:01:04]} Qc7 {[%emt 0:00:58]} 13. Nd5 {[%emt 0:07:30] B56: Classical Sicilian: Unusual Lines.} Nxd5 {[%emt 0:02:30]} 14. Bxd5 {[%emt 0:00:16][%cal Oc2c4]} Bxd5 {[%emt 0:03:08]} 15. Rxd5 {[%emt 0:00:20] The position is equal.} Nc4 {[%emt 0:00:08]} 16. c3 {[%emt 0:03:26]} f5 {[%emt 0:01:31]} (16... b5 $11 {is superior.}) 17. exf5 {[%emt 0:00:46]} Rxf5 {[%emt 0:00:22] [#]} 18. b3 $146 {[%emt 0:03:18]} (18. Bc5 $5 {[%cal Re2c4]} Nb6 19. Bxb6 Qxb6 20. c4 $11) ({Predecessor:} 18. Bc5 Nb6 19. Bxb6 Qxb6 20. b3 Raf8 21. c4 Qc6 22. Qd3 b6 23. Nd4 Qc8 24. Nxf5 Rxf5 {1-0 (31) Bubir,S (2398)-Hellbing,B (2424) IECG email 2007}) 18... Nxe3 {[%emt 0:01:33]} 19. Qxe3 {[%emt 0:00:04]} Raf8 {[%emt 0:00:11]} 20. Rf1 {[%emt 0:02:06]} Qc6 {[%emt 0:02:01]} 21. c4 {[%emt 0:03:33]} Rf4 {[%emt 0:06:21]} 22. Nd2 {[%emt 0:07:13]} b5 {[%emt 0:04:21][%cal Rb5c4]} 23. Qd3 {[%emt 0:00:49][%cal Rc4b5]} bxc4 {[%emt 0:01:12]} 24. Nxc4 {[%emt 0:02:59]} R8f6 {[%emt 0:00:38]} 25. Nd2 {[%emt 0:03:14]} Qb6 {[%emt 0:17:39][%cal Rf4f2]} 26. Ne4 {[%emt 0:01:10]} Rf8 {[%emt 0:00:22]} 27. a3 {[%emt 0:10:03]} a5 {[%emt 0:09:34]} 28. Rb5 {[%emt 0:04:58]} (28. h3 $16) 28... Qd4 $14 {[%emt 0:16:36]} 29. Qxd4 {[%emt 0:00:11]} exd4 {[%emt 0:00:02]} 30. f3 {[%emt 0:02:07]} R4f5 {[%emt 0:00:16]} 31. Rxf5 {[%emt 0:00:11]} (31. Rb7 $5 {[%cal Rb7e7]} Re5 32. Rd1 $14) 31... Rxf5 $11 {[%emt 0:00:04][%mdl 4096] Endgame KRB-KRN} 32. Rd1 {[%emt 0:01:43]} d5 {[%emt 0:00:25]} 33. Ng3 {[%emt 0:00:10]} Re5 {[%emt 0:00:03]} 34. a4 {[%emt 0:02:55]} Bc5 {[%emt 0:01:00]} 35. Kf1 {[%emt 0:00:54]} Re3 {[%emt 0:00:39]} 36. Nf5 {[%emt 0:00:03]} Rxb3 {[%emt 0:00:22]} 37. Nxd4 {[%emt 0:00:01]} Rb4 {[%emt 0:05:30][%csl LRa4,LRd4]} 38. Nc6 {[%emt 0:04:54][%csl LRa5,LRb4,LRd5]} (38. Ne6 $5 {[%cal Re6c5]} Be7 39. Rd4 $11 (39. Rxd5 Rxa4 40. Rd7 Bf6 $11)) 38... Rxa4 {[%emt 0:00:03]} 39. Rxd5 {[%emt 0:00:06]} Bb6 {[%emt 0:00:07]} 40. Rb5 {[%emt 0:07:05]} Bc7 {[%emt 0:00:14]} 41. Rb7 {[%emt 0:09:14]} Ra1+ {[%emt 0:00:21]} 42. Ke2 {[%emt 0:01:02]} Bxh2 {[%emt 0:00:18]} 43. Kd3 {[%emt 0:03:50]} (43. g4 $15) 43... a4 $17 {[%emt 0:00:55][%cal Ba5a4,Ba4a3][%mdl 32]} 44. Ra7 {[%emt 0:02:45]} a3 {[%emt 0:00:58]} 45. Nb4 {[%emt 0:01:57] Against a2} Bd6 {[%emt 0:00:54]} (45... h5 $17 46. Nc2 Rg1) 46. Nc2 $15 {[%emt 0:00:53]} Ra2 {[%emt 0:00:45]} ({Better is} 46... Rb1 $15) 47. Kc3 {[%emt 0:03:37]} (47. Ra8+ $1 $11 {keeps the balance.} Kf7 48. Ra6) 47... Rb2 {[%emt 0:01:35]} 48. f4 {[%emt 0:01:59]} (48. Ra8+ $142 Kf7 49. Ra7+ Kf6 50. Ra6) 48... h5 $17 {[%emt 0:06:08]} 49. g3 {[%emt 0:01:09]} Rb1 {[%emt 0:00:06]} 50. Ra6 {[%emt 0:01:09]} (50. Nxa3 $2 Rg1 51. Nc4 (51. Ra8+ $2 Kh7 $19) 51... Rxg3+ 52. Kd4 Bxf4 $19) (50. Ra8+ $17 Kh7 51. Ra6) 50... Be7 {[%emt 0:00:26]} (50... Bf8 $1 $19 {and Black stays clearly on top. White must now prevent ...Rg1.} 51. Nd4 Rg1) 51. Ra7 {[%emt 0:00:48]} Bf8 {[%emt 0:00:57]} 52. Nxa3 {[%emt 0:00:07]} Rg1 {[%emt 0:02:38]} 53. Kd4 {[%emt 0:01:14]} Rxg3 {[%emt 0:00:24]} 54. Nc4 {[%emt 0:00:06]} h4 {[%emt 0:01:17]} 55. Ke4 {[%emt 0:04:14]} h3 {[%emt 0:00:08]} 56. Ra1 {[%emt 0:00:03]} Bc5 {[%emt 0:02:13]} 57. Rh1 {[%emt 0:00:36]} Kh7 {[%emt 0:01:02] aiming for ...Kh6.} 58. Ne5 {[%emt 0:03:35]} Kh6 {[%emt 0:00:52]} 59. Nf3 $1 {[%emt 0:00:04]} Kh5 {[%emt 0:00:42]} 60. Rh2 $2 {[%emt 0:00:36][%mdl 8192] Black continues to play with concentration.} (60. Rd1 $1 $11 {and White stays safe.}) 60... Bd6 $2 {[%emt 0:01:23]} (60... Be7 $1 $19 {And now ...Bf6 would win.} 61. Rh1 Bf6) 61. Rh1 $2 {[%emt 0:00:06][%mdl 8192]} (61. Rd2 $17 {was the crucial defense.} Rg6 62. Rd3) 61... Be7 $1 $19 {[%emt 0:01:32]} 62. Rh2 {[%emt 0:01:13]} Bh4 $2 {[%emt 0:00:35]} (62... Bf6 $19 {Threatens to win with ...Kg4.} 63. Rh1 Kg4 64. Nh2+ Kh4 65. Nf3+ Kh5) 63. Rh1 $2 {[%emt 0:00:41][%mdl 8192] [#]} (63. Rc2 $11) 63... Bf6 $1 {[%emt 0:00:06]} 64. Nh2 {[%emt 0:00:04]} Rg2 {[%emt 0:00:48] Hoping for ...Kh4.} 65. Nf1 {[%emt 0:00:14]} Kh4 {[%emt 0:00:36]} ({Not} 65... Re2+ 66. Kf3 Rb2 67. Rxh3+ Kg6 68. Ne3 $11) 66. Ne3 {[%emt 0:00:28]} Rf2 {[%emt 0:01:33]} 67. Nf5+ {[%emt 0:00:51]} Kg4 {[%emt 0:00:13]} 68. Rg1+ {[%emt 0:00:12] [#]} Rg2 $1 {[%emt 0:00:17]} ({Stronger than} 68... Kh5 69. Nxg7+ Kh6 70. Nf5+ Kh5 71. Ng7+ Bxg7 72. Rxg7 $11) 69. Rh1 $2 {[%emt 0:00:59]} (69. Ne3+ Kg3 70. Rf1 (70. Nxg2 $2 hxg2 71. Kd3 Kh2 $19)) 69... h2 {[%emt 0:00:25]} 70. Ne3+ {[%emt 0:00:06]} Kh3 {[%emt 0:00:26]} 71. Nf1 {[%emt 0:00:51]} Rf2 {[%emt 0:00:11][%cal Of2f1] ( -> ...Rxf1!)} 72. Ne3 {[%emt 0:00:24]} Re2 {[%emt 0:00:23] Black mates.} 73. Kf3 {[%emt 0:00:08] [#]} Rxe3+ $1 {[%emt 0:00:06][%mdl 512]} 74. Kxe3 {[%emt 0:00:06]} Kg2 {[%emt 0:00:02]} 75. Ke2 {[%emt 0:00:09]} Kxh1 {[%emt 0:00:07]} 76. Kf1 {[%emt 0:00:04]} Bd4 {[%emt 0:00:09]} 77. f5 {[%emt 0:00:02]} Ba7 {[%emt 0:00:06] Weighted Error Value: White=0.31/Black=0.27 (precise)} 0-1

[Event "34th MPL National U14-ch 2022"]
[Site "Ahmedabad"]
[Date "2022.05.10"]
[Round "4.2"]
[White "Md Imran"]
[Black "John Veny Akkarakaran"]
[Result "0-1"]
[ECO "E11"]
[WhiteElo "2122"]
[BlackElo "1855"]
[Annotator "TA"]
[PlyCount "70"]
[EventDate "2022.05.09"]
[EventType "swiss"]
[EventCountry "IND"]
[SourceTitle "playchess.com"]
[Source "ChessBase"]
[SourceQuality "1"]
[TimeControl "5400+30"]

{[%evp 11,70,10,10,0,0,17,8,4,0,0,18,18,19,21,45,16,20,13,29,29,41,27,51,35,40,36,29,22,18,-22,-30,-36,-35,-72,-46,-57,0,-15,-9,-24,-22,-60,0,-39,-28,-139,-116,-435,-435,-402,-383,-1197,-1175,-29986,-29987,-29988,-29989,-29989,-29990,-29991,-29992]} 1. d4 {[%emt 0:00:08]} e6 {[%emt 0:00:09]} 2. c4 {[%emt 0:00:23]} Nf6 {[%emt 0:00:06]} 3. Nf3 {[%emt 0:00:09]} Bb4+ {[%emt 0:00:07]} 4. Bd2 {[%emt 0:00:04]} Qe7 {[%emt 0:00:09]} 5. Qc2 {[%emt 0:00:15]} Bxd2+ {[%emt 0:05:28]} 6. Nbxd2 {[%emt 0:00:05]} d6 {[%emt 0:00:41]} 7. g3 {[%emt 0:00:55] E11: Bogo-Indian.} e5 {[%emt 0:05:31]} 8. e4 {[%emt 0:02:38]} O-O {[%emt 0:05:03]} 9. Bg2 {[%emt 0:01:21] The position is equal.} a5 {[%emt 0:00:15]} 10. O-O {[%emt 0:00:08]} Na6 {[%emt 0:10:43]} 11. Qc3 {[%emt 0:03:43][%csl LRa5,LRe5]} exd4 {[%emt 0:07:59]} 12. Nxd4 {[%emt 0:00:07]} Nc5 {[%emt 0:01:44]} 13. Rae1 {[%emt 0:00:32] [#]} c6 $146 {[%emt 0:06:43]} ({Predecessor:} 13... Qe5 14. f4 Qh5 15. Nb5 Rd8 16. Nxc7 Rb8 17. e5 Ne8 18. exd6 Na4 19. Qe5 Qxe5 20. fxe5 Nxb2 21. Bd5 Nxd6 22. exd6 Be6 23. Nxe6 fxe6 24. Rxe6 Kh8 {1-0 (24) Chiku Ratte,O (2410)-Rodrigue Lemieux,S (2352) Ottawa 2018}) 14. h3 {[%emt 0:00:34]} Qc7 {[%emt 0:04:19]} 15. N2b3 {[%emt 0:03:32]} Nxb3 {[%emt 0:07:38]} 16. Nxb3 {[%emt 0:00:59]} Nd7 {[%emt 0:02:35]} 17. Kh2 {[%emt 0:01:23]} a4 {[%emt 0:05:48]} 18. Nd4 {[%emt 0:00:15]} Nc5 {[%emt 0:00:34]} 19. f4 {[%emt 0:00:19]} Re8 {[%emt 0:03:31][%cal Bf8e8,Be8e7,Be7d7,Bd7d2][%mdl 32]} 20. e5 {[%emt 0:02:13]} dxe5 {[%emt 0:02:08][%cal Oc8h3]} 21. fxe5 {[%emt 0:00:02]} Be6 {[%emt 0:01:28]} (21... Rxe5 $2 22. Rxe5 Qxe5 23. Re1 $18) 22. b4 {[%emt 0:04:28]} axb3 {[%emt 0:00:40]} 23. axb3 {[%emt 0:00:15]} Qb6 {[%emt 0:05:41]} (23... Ra2 $15) 24. Qf3 {[%emt 0:02:17]} Re7 {[%emt 0:01:22]} 25. Qe3 {[%emt 0:00:36]} Nd7 {[%emt 0:02:38]} 26. Qf4 {[%emt 0:02:35]} Nc5 {[%emt 0:03:37]} ({Better is} 26... Nf8 $1 $15) 27. Qh4 {[%emt 0:01:26]} Rd7 {[%emt 0:01:26]} 28. Nxe6 {[%emt 0:02:31]} (28. Rd1 $11 {remains equal.}) 28... Nxe6 $17 {[%emt 0:00:45]} 29. Re4 $2 {[%emt 0:02:52][%mdl 8192] Now White is beyond hope.} (29. Ra1 $17 Rf8 30. Rab1) 29... Ra2 $19 {[%emt 0:01:42] [#] Strongly threatening ...Rdd2.} 30. Kh1 {[%emt 0:00:27]} Qxb3 {[%emt 0:01:46]} 31. Qg4 $2 {[%emt 0:01:22]} (31. Ree1) 31... Qc2 {[%emt 0:02:47][%csl Ga2][%cal Rc2g2]} 32. Rg1 {[%emt 0:00:05]} Rd2 {[%emt 0:00:55] Black mates.} 33. Qf3 {[%emt 0:00:12]} Ng5 {[%emt 0:01:06]} 34. Qf5 {[%emt 0:00:17]} h6 {[%emt 0:00:23]} 35. e6 {[%emt 0:07:50]} fxe6 {[%emt 0:01:45] Weighted Error Value: White=0.70/Black=0.08 (flawless)} 0-1

[Event "34th MPL National U14-ch 2022"]
[Site "Ahmedabad"]
[Date "2022.05.10"]
[Round "4.3"]
[White "Shankhodip De"]
[Black "Ilamparthi A R"]
[Result "1/2-1/2"]
[ECO "E69"]
[WhiteElo "1810"]
[BlackElo "2121"]
[Annotator "TA"]
[PlyCount "73"]
[EventDate "2022.05.09"]
[EventType "swiss"]
[EventCountry "IND"]
[SourceTitle "playchess.com"]
[Source "ChessBase"]
[SourceQuality "1"]
[TimeControl "5400+30"]

{[%evp 20,73,33,31,41,36,108,73,100,107,97,83,145,90,113,68,121,24,111,105,116,120,129,121,118,114,124,126,173,164,177,174,160,174,179,121,89,82,72,-16,-28,-28,-25,-20,0,0,0,-13,-10,-54,0,0,0,0,0,0]} 1. d4 {[%emt 0:00:08]} Nf6 {[%emt 0:00:08]} 2. c4 {[%emt 0:00:08]} g6 {[%emt 0:00:04]} 3. g3 {[%emt 0:00:17]} Bg7 {[%emt 0:00:08]} 4. Bg2 {[%emt 0:00:04]} O-O {[%emt 0:00:15]} 5. Nc3 {[%emt 0:00:21]} d6 {[%emt 0:00:35]} 6. Nf3 {[%emt 0:00:04]} Nbd7 {[%emt 0:01:52]} 7. O-O {[%emt 0:00:10]} e5 {[%emt 0:00:10]} 8. e4 {[%emt 0:00:25]} Re8 {[%emt 0:01:10]} 9. h3 {[%emt 0:01:40]} c6 {[%emt 0:01:09]} 10. Re1 {[%emt 0:00:32]} a6 {[%emt 0:02:20]} 11. d5 {[%emt 0:06:35]} Qc7 {[%emt 0:02:10] E69: King's Indian: Fianchetto: 6...Nbd7 7 0-0 e5 8 e4 c6 9 h3.} 12. Be3 {[%emt 0:03:08] [#]} b5 $146 {[%emt 0:03:14]} (12... Nc5 $14) ({Predecessor:} 12... cxd5 13. cxd5 b5 14. a3 Nb6 15. Bxb6 Qxb6 16. b4 Nh5 17. Kf1 Bd7 18. Rc1 Rac8 {0-1 (36) Bui,T (1331)-Tran,Q (2300) Hanoi 2021}) 13. cxb5 {[%emt 0:00:46]} axb5 {[%emt 0:01:18] White is better.} 14. dxc6 {[%emt 0:03:49]} Qxc6 {[%emt 0:00:06]} 15. Rc1 $1 {[%emt 0:00:09] And now Bf1 would win.} Qb7 {[%emt 0:17:47]} ({Black should play} 15... b4 16. Nd5 Nc5) 16. b4 {[%emt 0:10:20]} ({Resist} 16. Qxd6 b4 17. Nd5 Nxe4 18. Ne7+ Kh8 19. Nxc8 Raxc8 $16) (16. Bf1 $142 $1) 16... Bf8 {[%emt 0:11:39]} (16... Nxe4 $2 17. Nxe4 Qxe4 18. Ng5 Qxb4 19. Qd5 $18) 17. Nd2 {[%emt 0:05:08]} Nb8 {[%emt 0:08:46]} (17... Qb8 $14) 18. a4 {[%emt 0:19:07]} (18. Bg5 $16 Be7 19. Qf3) 18... Bd7 {[%emt 0:04:14]} (18... bxa4 $11 19. Nxa4 Be6) 19. a5 {[%emt 0:03:59]} Na6 {[%emt 0:05:02]} 20. Bg5 {[%emt 0:02:10]} Bg7 {[%emt 0:04:41]} 21. Bxf6 {[%emt 0:00:28]} Bxf6 {[%emt 0:00:07]} 22. Nd5 {[%emt 0:00:04]} Bd8 {[%emt 0:01:42]} 23. Nf1 {[%emt 0:03:49] White is more active. Pair of Knights!} Be6 {[%emt 0:02:03]} (23... Nb8 $16 24. Nfe3 Nc6) 24. Nfe3 $18 {[%emt 0:00:18]} Bg5 {[%emt 0:00:40]} 25. f4 {[%emt 0:05:04]} exf4 {[%emt 0:01:39]} 26. gxf4 {[%emt 0:00:10]} Bh4 {[%emt 0:00:06] [#]} 27. Rf1 {[%emt 0:01:28]} ({White should try} 27. Qd2 $1 $18) 27... Qa7 $16 {[%emt 0:00:31] Strongly threatening ...Bxd5.} 28. Kh1 {[%emt 0:01:37] f5 is the strong threat.} Nxb4 {[%emt 0:00:39] [#]} 29. f5 {[%emt 0:06:57]} (29. Nb6 $1 $16) 29... Bxd5 $11 {[%emt 0:02:31]} 30. Nxd5 {[%emt 0:00:08]} Nxd5 {[%emt 0:00:34]} (30... Qxa5 $2 31. Nc7 Bg5 32. Nxe8 Rxe8 33. fxg6 hxg6 34. Qb3 $18) 31. Qxd5 {[%emt 0:00:32]} Rad8 {[%emt 0:00:55]} 32. a6 {[%emt 0:08:41]} Bg3 {[%emt 0:04:49]} 33. Qxb5 {[%emt 0:01:15]} Be5 {[%emt 0:00:46]} 34. Qd5 {[%emt 0:02:18]} Re7 {[%emt 0:02:42]} ({Better is} 34... Rb8 $15) 35. Rc6 {[%emt 0:01:14] The position is equal.} Qe3 {[%emt 0:00:49] aiming for ...Qg3.} 36. Rf3 {[%emt 0:04:33] Inhibits Qg3.} Qe1+ {[%emt 0:00:07]} 37. Bf1 {[%emt 0:00:06] White really could win this.  Weighted Error Value: White=0.24 (precise) /Black=0.22 (precise)} 1/2-1/2

[Event "34th MPL National U14-ch 2022"]
[Site "Ahmedabad"]
[Date "2022.05.10"]
[Round "4.4"]
[White "Daakshin Arun"]
[Black "Navya Goyal"]
[Result "1-0"]
[ECO "E60"]
[WhiteElo "2016"]
[BlackElo "1483"]
[Annotator "TA"]
[PlyCount "55"]
[EventDate "2022.05.09"]
[EventType "swiss"]
[EventCountry "IND"]
[SourceTitle "playchess.com"]
[Source "ChessBase"]
[SourceQuality "1"]
[TimeControl "5400+30"]

{[%evp 9,55,8,22,13,14,1,45,53,81,53,41,41,78,74,80,41,143,68,129,97,135,143,331,292,409,317,580,570,899,878,1564,1545,1453,1475,1828,1152,29984,29985,29984,29983,29994,29995,29995,29996,29996,29997,29998,29999]} 1. d4 {[%emt 0:00:05]} Nf6 {[%emt 0:00:17]} 2. c4 {[%emt 0:00:04]} g6 {[%emt 0:00:05]} 3. h4 {[%emt 0:00:04]} Bg7 {[%emt 0:00:06]} 4. Nc3 {[%emt 0:00:04]} d5 {[%emt 0:00:14]} 5. h5 {[%emt 0:01:01]} Nxh5 {[%emt 0:00:18]} 6. cxd5 {[%emt 0:00:16] E60: King's Indian: Unusual lines and Fianchetto Variation without Nc3.} c6 {[%emt 0:00:14]} 7. e4 {[%emt 0:00:15]} Nf6 {[%emt 0:00:26][%cal Rc6d5]} 8. dxc6 {[%emt 0:02:50] White is slightly better.} bxc6 {[%emt 0:01:20][%cal Oe7e5] [#]} 9. Bh6 $146 {[%emt 0:03:47]} ({Predecessor:} 9. Bf4 h6 10. Be2 Qa5 11. Qd2 Nbd7 12. Nf3 g5 13. Bg3 Ba6 14. Ne5 Rc8 15. f4 c5 16. Bxa6 Qxa6 17. d5 Nxe5 18. fxe5 Ng4 19. d6 {½-½ (19) Pinheiro,I (2318)-Lucas,L (2176) Fortaleza 2011}) 9... Bxh6 {[%emt 0:02:07]} 10. Rxh6 {[%emt 0:00:05]} Qa5 {[%emt 0:00:46]} 11. Qd2 {[%emt 0:01:40]} Nbd7 {[%emt 0:02:32]} 12. O-O-O {[%emt 0:01:34]} Bb7 {[%emt 0:04:36]} (12... Nb6 $14) 13. Kb1 {[%emt 0:02:16]} (13. Nf3 $16) 13... Rd8 {[%emt 0:01:35]} (13... c5 $1 $14) 14. Be2 $16 {[%emt 0:03:34]} c5 {[%emt 0:07:23] [#]} 15. d5 $1 {[%emt 0:01:38]} ({Worse is} 15. dxc5 O-O 16. f3 Nxc5 $15) 15... Ne5 $2 {[%emt 0:00:16] A mistake that costs the game.} (15... Ba6 $16) 16. Qg5 $18 {[%emt 0:03:33]} Nfd7 {[%emt 0:03:18]} (16... Ned7 $142 17. e5 Ng8) 17. Qh4 {[%emt 0:02:36]} Nf8 {[%emt 0:12:32]} (17... Nf6 {might work better.} 18. f4 Nc6 19. dxc6 Rxd1+ 20. Bxd1 Bxc6) 18. Bb5+ {[%emt 0:02:43]} Ned7 {[%emt 0:02:06]} 19. e5 {[%emt 0:02:09] Hoping for d6.} Ba6 {[%emt 0:00:43] [#]} 20. d6 $1 {[%emt 0:00:19][%csl Gd6][%cal Rh4e7]} f6 {[%emt 0:04:31] [#]} 21. dxe7 $1 {[%emt 0:01:22][%cal Oe5f6]} Kxe7 {[%emt 0:00:39]} (21... Bxb5 22. exd8=Q+) 22. Bxd7 {[%emt 0:00:58]} Nxd7 {[%emt 0:00:45]} 23. Rxh7+ {[%emt 0:00:13] White mates.} Rxh7 {[%emt 0:00:18]} 24. Qxh7+ {[%emt 0:00:06]} Ke6 {[%emt 0:00:07]} 25. Rd6+ {[%emt 0:00:56]} Kxe5 {[%emt 0:00:13]} 26. Qh2+ {[%emt 0:02:02]} Kf5 {[%emt 0:00:20]} 27. Qh3+ {[%emt 0:00:06]} Kf4 {[%emt 0:01:21]} 28. g3+ {[%emt 0:00:20] Weighted Error Value: White=0.14 (very precise) /Black=0.85} 1-0